[Event "Slovakia Open Piestany-A 2022"]
[Site "Piestany"]
[Date "2022.07.13"]
[Round "4.18"]
[White "Bhambure, Shantanu"]
[Black "Drtina, Milan"]
[Result "1-0"]
[ECO "E91"]
[WhiteElo "2320"]
[BlackElo "2167"]
[Annotator "ChessBase"]
[PlyCount "85"]
[EventDate "2022.07.12"]
[EventType "swiss"]
[EventCountry "SVK"]
[SourceTitle "playchess.com"]
[Source "ChessBase"]
[SourceQuality "1"]
[TimeControl "40/5400+30:1800+30"]

1. d4 {[%emt 0:00:05]} Nf6 {[%emt 0:01:55]} 2. c4 {[%emt 0:00:06]} g6 {[%emt 0:00:09]} 3. Nc3 {[%emt 0:00:06]} Bg7 {[%emt 0:00:11]} 4. e4 {[%emt 0:00:28]} d6 {[%emt 0:00:11]} 5. Nf3 {[%emt 0:00:43]} O-O {[%emt 0:00:21]} 6. Be2 {[%emt 0:00:06]} c6 {[%emt 0:00:41]} 7. O-O {[%emt 0:01:07]} Qc7 {[%emt 0:00:39]} 8. Be3 {[%emt 0:01:56]} e5 {[%emt 0:11:01]} 9. d5 {[%emt 0:02:17]} c5 {[%emt 0:01:50]} 10. Ne1 {[%emt 0:05:38]} a6 {[%emt 0:03:21]} 11. Nd3 {[%emt 0:02:10]} Re8 {[%emt 0:01:12]} 12. a3 {[%emt 0:02:03]} Nbd7 {[%emt 0:01:47]} 13. Qc2 {[%emt 0:05:04]} Rb8 {[%emt 0:09:38]} 14. b4 {[%emt 0:04:14]} b6 {[%emt 0:02:42]} 15. Rab1 {[%emt 0:01:51]} cxb4 {[%emt 0:10:36]} 16. axb4 {[%emt 0:03:02]} h6 {[%emt 0:02:17]} 17. Rb3 {[%emt 0:05:56]} g5 {[%emt 0:02:36]} 18. Rfb1 {[%emt 0:02:52]} Bf8 {[%emt 0:01:07]} 19. f3 {[%emt 0:02:24]} Nh5 {[%emt 0:00:44]} 20. g3 {[%emt 0:01:54]} Ndf6 {[%emt 0:03:26]} 21. Qd2 {[%emt 0:09:58]} Ng7 {[%emt 0:01:28]} 22. Kg2 {[%emt 0:05:59]} Nh7 {[%emt 0:03:30]} 23. g4 {[%emt 0:02:42]} Be7 {[%emt 0:01:47]} 24. h4 {[%emt 0:00:59]} Bd7 {[%emt 0:04:46]} 25. h5 {[%emt 0:01:30]} Nf6 {[%emt 0:01:51]} 26. Ra3 {[%emt 0:01:14]} Ra8 {[%emt 0:02:32]} 27. Rba1 {[%emt 0:01:44]} Qb7 {[%emt 0:00:34]} 28. c5 {[%emt 0:01:13]} bxc5 {[%emt 0:00:51]} 29. bxc5 {[%emt 0:00:05]} dxc5 {[%emt 0:00:18]} 30. Nxe5 {[%emt 0:01:56]} Bd6 {[%emt 0:03:18]} 31. Nc4 {[%emt 0:01:27]} Bc7 {[%emt 0:00:31]} 32. Bxc5 {[%emt 0:02:01]} Bf4 {[%emt 0:03:42]} 33. Qd4 {[%emt 0:02:12]} Nfxh5 {[%emt 0:02:08]} 34. gxh5 {[%emt 0:00:11]} f5 {[%emt 0:00:55]} 35. Nd6 {[%emt 0:01:21]} Bxd6 {[%emt 0:00:24]} 36. Bxd6 {[%emt 0:00:03]} fxe4 {[%emt 0:03:16]} 37. fxe4 {[%emt 0:00:20]} a5 {[%emt 0:01:24]} 38. Be5 {[%emt 0:00:38]} Re7 {[%emt 0:00:51]} 39. Rxa5 {[%emt 0:00:51]} Rxa5 {[%emt 0:00:16]} 40. Rxa5 {[%emt 0:00:04]} Bc8 {[%emt 0:04:02]} 41. d6 {[%emt 0:32:09]} Rf7 {[%emt 0:31:07]} 42. Bxg7 {[%emt 0:00:54]} Rxg7 {[%emt 0:00:26]} 43. Qd5+ {[%emt 0:00:11]} 1-0

[Event "Slovakia Open Piestany-A 2022"]
[Site "Piestany"]
[Date "2022.07.13"]
[Round "4.19"]
[White "Bochnicka, Vladimir"]
[Black "Nadzamova, Viktoria"]
[Result "1-0"]
[ECO "B47"]
[WhiteElo "2295"]
[BlackElo "2133"]
[Annotator "ChessBase"]
[PlyCount "65"]
[EventDate "2022.07.12"]
[EventType "swiss"]
[EventCountry "SVK"]
[SourceTitle "playchess.com"]
[Source "ChessBase"]
[SourceQuality "1"]
[TimeControl "40/5400+30:1800+30"]

1. e4 {[%emt 0:00:03]} c5 {[%emt 0:00:21]} 2. Nf3 {[%emt 0:00:07]} e6 {[%emt 0:00:44]} 3. d4 {[%emt 0:00:11]} cxd4 {[%emt 0:00:03]} 4. Nxd4 {[%emt 0:00:09]} Nc6 {[%emt 0:01:20]} 5. Nc3 {[%emt 0:00:22]} Qc7 {[%emt 0:02:36]} 6. Qd3 {[%emt 0:01:02]} a6 {[%emt 0:03:33]} 7. Nxc6 {[%emt 0:00:28]} bxc6 {[%emt 0:00:24]} 8. Qg3 {[%emt 0:00:42]} Qxg3 {[%emt 0:01:03]} 9. hxg3 {[%emt 0:00:06]} d5 {[%emt 0:00:41]} 10. Bf4 {[%emt 0:01:57]} Nf6 {[%emt 0:03:53]} 11. Na4 {[%emt 0:02:59]} Nd7 {[%emt 0:03:12]} 12. O-O-O {[%emt 0:03:50]} Be7 {[%emt 0:04:53]} 13. Bd3 {[%emt 0:10:05]} Bb7 {[%emt 0:18:55]} 14. Rhe1 {[%emt 0:15:35]} Rc8 {[%emt 0:09:29]} 15. Kb1 {[%emt 0:08:39]} Kf8 {[%emt 0:09:51]} 16. g4 {[%emt 0:03:19]} g5 {[%emt 0:05:14]} 17. Bd2 {[%emt 0:04:01]} d4 {[%emt 0:01:04]} 18. g3 {[%emt 0:07:49]} c5 {[%emt 0:01:41]} 19. b3 {[%emt 0:04:12]} Kg7 {[%emt 0:02:10]} 20. f4 {[%emt 0:03:17]} h5 {[%emt 0:02:25]} 21. e5 {[%emt 0:06:59]} hxg4 {[%emt 0:03:04]} 22. f5 {[%emt 0:02:08]} f6 {[%emt 0:02:52]} 23. exf6+ {[%emt 0:02:16]} Bxf6 {[%emt 0:00:08]} 24. Rxe6 {[%emt 0:05:10]} Rh3 {[%emt 0:07:53]} 25. Nb6 {[%emt 0:04:41]} Nxb6 {[%emt 0:01:27]} 26. Rxb6 {[%emt 0:00:04]} Bf3 {[%emt 0:00:09]} 27. Re1 {[%emt 0:01:35]} Rxg3 {[%emt 0:01:09]} 28. Bxg5 {[%emt 0:00:33]} Bxg5 {[%emt 0:03:47]} 29. Rg6+ {[%emt 0:00:05]} Kf8 {[%emt 0:00:14]} 30. Bc4 {[%emt 0:02:12]} Be3 {[%emt 0:02:34]} 31. f6 {[%emt 0:00:54]} Ke8 {[%emt 0:00:28]} 32. Be6 {[%emt 0:00:26]} Kd8 {[%emt 0:02:00]} 33. Rg8+ {[%emt 0:00:08]} 1-0

[Event "Slovakia Open Piestany-A 2022"]
[Site "Piestany"]
[Date "2022.07.13"]
[Round "4.20"]
[White "Warchol, Kamil"]
[Black "Svana, Peter"]
[Result "1/2-1/2"]
[ECO "B84"]
[WhiteElo "2121"]
[BlackElo "2280"]
[Annotator "ChessBase"]
[PlyCount "85"]
[EventDate "2022.07.12"]
[EventType "swiss"]
[EventCountry "SVK"]
[SourceTitle "playchess.com"]
[Source "ChessBase"]
[SourceQuality "1"]
[TimeControl "40/5400+30:1800+30"]

1. e4 {[%emt 0:00:08]} c5 {[%emt 0:02:13]} 2. Nf3 {[%emt 0:00:06]} d6 {[%emt 0:00:04]} 3. d4 {[%emt 0:00:05]} cxd4 {[%emt 0:00:09]} 4. Nxd4 {[%emt 0:00:11]} Nf6 {[%emt 0:00:11]} 5. Nc3 {[%emt 0:00:05]} a6 {[%emt 0:00:05]} 6. f4 {[%emt 0:00:04]} Nc6 {[%emt 0:02:27]} 7. Be2 {[%emt 0:12:04]} e6 {[%emt 0:02:19]} 8. Be3 {[%emt 0:01:07]} Bd7 {[%emt 0:00:39]} 9. O-O {[%emt 0:03:05]} Qc7 {[%emt 0:04:28]} 10. Qe1 {[%emt 0:10:57]} h5 {[%emt 0:04:05]} 11. Kh1 {[%emt 0:11:23]} b5 {[%emt 0:06:38]} 12. a3 {[%emt 0:07:40]} Be7 {[%emt 0:04:23]} 13. Rd1 {[%emt 0:03:43]} h4 {[%emt 0:01:14]} 14. Bf2 {[%emt 0:07:21]} h3 {[%emt 0:00:22]} 15. g3 {[%emt 0:05:12]} Rc8 {[%emt 0:03:23]} 16. Bf3 {[%emt 0:00:40]} Nxd4 {[%emt 0:08:09]} 17. Bxd4 {[%emt 0:02:44]} Bc6 {[%emt 0:04:27]} 18. Qe2 {[%emt 0:04:34]} Qb7 {[%emt 0:03:13]} 19. Bxf6 {[%emt 0:02:35]} gxf6 {[%emt 0:01:11]} 20. f5 {[%emt 0:00:08]} a5 {[%emt 0:04:28]} 21. fxe6 {[%emt 0:13:40]} fxe6 {[%emt 0:03:19]} 22. Qe3 {[%emt 0:00:33]} b4 {[%emt 0:05:14]} 23. axb4 {[%emt 0:01:21]} Qxb4 {[%emt 0:02:29]} 24. Rb1 {[%emt 0:02:33]} Ba8 {[%emt 0:01:43]} 25. Rfe1 {[%emt 0:01:57]} Rc5 {[%emt 0:05:53]} 26. Ne2 {[%emt 0:01:01]} f5 {[%emt 0:05:07]} 27. c3 {[%emt 0:04:29]} Qb7 {[%emt 0:02:20]} 28. b4 {[%emt 0:01:01]} Re5 {[%emt 0:05:57]} 29. bxa5 {[%emt 0:00:12]} Qc8 {[%emt 0:00:01]} 30. Qa7 {[%emt 0:02:18]} Kf7 {[%emt 0:01:02]} 31. Qe3 {[%emt 0:01:28]} fxe4 {[%emt 0:00:32]} 32. Bg4 {[%emt 0:00:18]} Bg5 {[%emt 0:01:32]} 33. Rf1+ {[%emt 0:00:04]} Kg6 {[%emt 0:09:02]} 34. Nf4+ {[%emt 0:00:05]} Kh6 {[%emt 0:00:06]} 35. Rb6 {[%emt 0:01:03]} Rd5 {[%emt 0:04:07]} 36. Bxh3 {[%emt 0:01:09]} Qc4 {[%emt 0:02:52]} 37. Bg2 {[%emt 0:00:45]} e5 {[%emt 0:01:19]} 38. Nxd5 {[%emt 0:00:18]} Bxe3 {[%emt 0:00:25]} 39. Rxd6+ {[%emt 0:00:03]} Kg7 {[%emt 0:01:24]} 40. Rd7+ {[%emt 0:00:17]} Kg6 {[%emt 0:01:00]} 41. Rd6+ {[%emt 0:23:20]} Kg7 {[%emt 0:00:50]} 42. Rd7+ {[%emt 0:01:37]} Kg6 {[%emt 0:00:13]} 43. Rd6+ {[%emt 0:04:43]} 1/2-1/2

[Event "Slovakia Open Piestany-A 2022"]
[Site "Piestany"]
[Date "2022.07.13"]
[Round "4.21"]
[White "Savitha Shri B"]
[Black "Balint, Peter"]
[Result "1-0"]
[ECO "C77"]
[WhiteElo "2278"]
[BlackElo "2051"]
[Annotator "ChessBase"]
[PlyCount "103"]
[EventDate "2022.07.12"]
[EventType "swiss"]
[EventCountry "SVK"]
[SourceTitle "playchess.com"]
[Source "ChessBase"]
[SourceQuality "1"]
[TimeControl "40/5400+30:1800+30"]

1. e4 {[%emt 0:00:23]} e5 {[%emt 0:00:43]} 2. Nf3 {[%emt 0:00:14]} Nc6 {[%emt 0:00:05]} 3. Bb5 {[%emt 0:00:16]} a6 {[%emt 0:00:04]} 4. Ba4 {[%emt 0:00:05]} Nf6 {[%emt 0:00:03]} 5. Nc3 {[%emt 0:00:05]} b5 {[%emt 0:03:11]} 6. Bb3 {[%emt 0:00:07]} Be7 {[%emt 0:05:01]} 7. d3 {[%emt 0:00:10]} d6 {[%emt 0:00:51]} 8. a3 {[%emt 0:00:15]} O-O {[%emt 0:00:33]} 9. h3 {[%emt 0:04:53]} Be6 {[%emt 0:09:40]} 10. Nd5 {[%emt 0:03:00]} h6 {[%emt 0:04:21]} 11. Be3 {[%emt 0:01:43]} Nb8 {[%emt 0:00:58]} 12. g4 {[%emt 0:03:14]} Nbd7 {[%emt 0:03:21]} 13. Rg1 {[%emt 0:03:21]} Bxd5 {[%emt 0:05:04]} 14. exd5 {[%emt 0:01:46]} g5 {[%emt 0:08:18]} 15. h4 {[%emt 0:04:20]} Nh7 {[%emt 0:00:57]} 16. Qd2 {[%emt 0:01:42]} Re8 {[%emt 0:01:32]} 17. O-O-O {[%emt 0:04:54]} Ndf8 {[%emt 0:01:17]} 18. hxg5 {[%emt 0:04:59]} Nxg5 {[%emt 0:05:59]} 19. Nh4 {[%emt 0:05:57]} Ng6 {[%emt 0:02:04]} 20. Nxg6 {[%emt 0:01:59]} fxg6 {[%emt 0:00:07]} 21. Rh1 {[%emt 0:08:54]} Kg7 {[%emt 0:01:57]} 22. Kb1 {[%emt 0:01:40]} Rf8 {[%emt 0:07:03]} 23. Qe2 {[%emt 0:03:52]} Qd7 {[%emt 0:03:00]} 24. Rh2 {[%emt 0:04:34]} Rf7 {[%emt 0:01:10]} 25. c3 {[%emt 0:03:31]} Rh8 {[%emt 0:03:08]} 26. Rdh1 {[%emt 0:00:56]} Bf6 {[%emt 0:02:09]} 27. Bc2 {[%emt 0:05:31]} Re7 {[%emt 0:02:26]} 28. Qd1 {[%emt 0:01:01]} c6 {[%emt 0:05:37]} 29. dxc6 {[%emt 0:02:36]} Qxc6 {[%emt 0:00:07]} 30. f4 {[%emt 0:03:38]} exf4 {[%emt 0:02:18]} 31. Bxf4 {[%emt 0:00:07]} a5 {[%emt 0:00:21]} 32. d4 {[%emt 0:01:40]} d5 {[%emt 0:00:54]} 33. Qd3 {[%emt 0:01:33]} Re4 {[%emt 0:02:02]} 34. Qg3 {[%emt 0:03:22]} Re7 {[%emt 0:01:06]} 35. Rf1 {[%emt 0:08:47]} Qe6 {[%emt 0:06:30]} 36. Rhf2 {[%emt 0:05:35]} Rf7 {[%emt 0:06:03]} 37. Bxg5 {[%emt 0:00:57]} hxg5 {[%emt 0:00:11]} 38. Qd3 {[%emt 0:00:09]} Qe4 {[%emt 0:02:58]} 39. Qxb5 {[%emt 0:00:54]} Qe8 {[%emt 0:01:51]} 40. Qxd5 {[%emt 0:00:27]} Rff8 {[%emt 0:00:36]} 41. Qxa5 {[%emt 0:32:41]} Rh3 {[%emt 0:31:20]} 42. Qc7+ {[%emt 0:03:20]} Rf7 {[%emt 0:00:17]} 43. Qb6 {[%emt 0:00:31]} Re3 {[%emt 0:00:27]} 44. Ka2 {[%emt 0:02:14]} Re6 {[%emt 0:00:11]} 45. Qa5 {[%emt 0:00:00]} Rb7 {[%emt 0:00:00]} 46. Bd3 {[%emt 0:00:00]} Reb6 {[%emt 0:00:00]} 47. Qd5 {[%emt 0:00:00]} Qb8 {[%emt 0:00:00]} 48. Ka1 {[%emt 0:00:00]} Qc7 {[%emt 0:00:00]} 49. Qe4 {[%emt 0:00:00]} Bd8 {[%emt 0:00:00]} 50. d5 {[%emt 0:00:00]} Qd6 {[%emt 0:00:00]} 51. Qd4+ {[%emt 0:00:00]} Kg8 {[%emt 0:00:00]} 52. c4 {[%emt 0:00:00]} 1-0

[Event "Slovakia Open Piestany-A 2022"]
[Site "Piestany"]
[Date "2022.07.13"]
[Round "4.22"]
[White "Brhel, Jan"]
[Black "Krasenkow, Michal"]
[Result "1/2-1/2"]
[ECO "A41"]
[WhiteElo "2018"]
[BlackElo "2569"]
[Annotator "ChessBase"]
[PlyCount "79"]
[EventDate "2022.07.12"]
[EventType "swiss"]
[EventCountry "SVK"]
[SourceTitle "playchess.com"]
[Source "ChessBase"]
[SourceQuality "1"]
[TimeControl "40/5400+30:1800+30"]

1. Nf3 {[%emt 0:03:33]} d6 {[%emt 0:00:29]} 2. d4 {[%emt 0:00:37]} Bg4 {[%emt 0:00:07]} 3. g3 {[%emt 0:01:18]} Bxf3 {[%emt 0:00:42]} 4. exf3 {[%emt 0:00:09]} d5 {[%emt 0:00:05]} 5. h4 {[%emt 0:04:20]} e6 {[%emt 0:00:42]} 6. Bd3 {[%emt 0:03:09]} c5 {[%emt 0:00:37]} 7. c3 {[%emt 0:00:08]} cxd4 {[%emt 0:00:54]} 8. Qb3 {[%emt 0:08:16]} Qd7 {[%emt 0:02:28]} 9. cxd4 {[%emt 0:07:56]} Nc6 {[%emt 0:00:06]} 10. Be3 {[%emt 0:02:20]} g6 {[%emt 0:01:03]} 11. h5 {[%emt 0:00:34]} Bg7 {[%emt 0:00:07]} 12. Nc3 {[%emt 0:05:23]} Bxd4 {[%emt 0:05:48]} 13. Bxd4 {[%emt 0:01:40]} Nxd4 {[%emt 0:00:02]} 14. Qd1 {[%emt 0:00:36]} g5 {[%emt 0:07:01]} 15. Bxh7 {[%emt 0:06:21]} Nxf3+ {[%emt 0:00:40]} 16. Qxf3 {[%emt 0:00:08]} Rxh7 {[%emt 0:00:04]} 17. O-O-O {[%emt 0:07:15]} f6 {[%emt 0:05:27]} 18. Rhe1 {[%emt 0:04:37]} O-O-O {[%emt 0:01:26]} 19. Kb1 {[%emt 0:03:51]} Kb8 {[%emt 0:01:32]} 20. g4 {[%emt 0:03:46]} d4 {[%emt 0:01:28]} 21. Ne4 {[%emt 0:07:10]} Qd5 {[%emt 0:01:38]} 22. Rc1 {[%emt 0:00:32]} b6 {[%emt 0:00:18]} 23. Qd3 {[%emt 0:02:13]} Rg7 {[%emt 0:10:45]} 24. h6 {[%emt 0:01:59]} Nxh6 {[%emt 0:00:42]} 25. Nxf6 {[%emt 0:00:08]} Qd6 {[%emt 0:00:24]} 26. Qb5 {[%emt 0:09:00]} Rb7 {[%emt 0:09:34]} 27. Rc6 {[%emt 0:01:55]} Qf4 {[%emt 0:01:31]} 28. Rcxe6 {[%emt 0:03:23]} Nf7 {[%emt 0:02:38]} 29. Nd5 {[%emt 0:01:47]} Qxf2 {[%emt 0:02:50]} 30. Nb4 {[%emt 0:01:09]} Ka8 {[%emt 0:01:33]} 31. Qc6 {[%emt 0:02:11]} Qg3 {[%emt 0:02:55]} 32. Re7 {[%emt 0:02:22]} Nd6 {[%emt 0:00:42]} 33. Nd5 {[%emt 0:05:23]} Kb8 {[%emt 0:00:53]} 34. Nb4 {[%emt 0:00:24]} a5 {[%emt 0:00:57]} 35. Rxb7+ {[%emt 0:01:25]} Nxb7 {[%emt 0:00:06]} 36. Re7 {[%emt 0:00:22]} Qg1+ {[%emt 0:04:58]} 37. Kc2 {[%emt 0:00:01]} Qf2+ {[%emt 0:04:41]} 38. Kd1 {[%emt 0:01:33]} Qf1+ {[%emt 0:00:11]} 39. Kd2 {[%emt 0:00:33]} Qf2+ {[%emt 0:01:46]} 40. Kd1 {[%emt 0:00:21]} 1/2-1/2

[Event "Slovakia Open Piestany-A 2022"]
[Site "Piestany"]
[Date "2022.07.13"]
[Round "4.23"]
[White "Domalchuk-Jonasson, Aleksandr"]
[Black "Sevcikova, Lucia"]
[Result "1-0"]
[ECO "A06"]
[WhiteElo "2244"]
[BlackElo "2036"]
[Annotator "ChessBase"]
[PlyCount "129"]
[EventDate "2022.07.12"]
[EventType "swiss"]
[EventCountry "SVK"]
[SourceTitle "playchess.com"]
[Source "ChessBase"]
[SourceQuality "1"]
[TimeControl "40/5400+30:1800+30"]

1. c4 {[%emt 0:00:15]} c6 {[%emt 0:00:19]} 2. Nf3 {[%emt 0:01:06]} d5 {[%emt 0:00:12]} 3. d4 {[%emt 0:00:34]} Nf6 {[%emt 0:00:09]} 4. e3 {[%emt 0:01:21]} e6 {[%emt 0:00:17]} 5. b3 {[%emt 0:00:37]} Nbd7 {[%emt 0:00:15]} 6. Bb2 {[%emt 0:01:03]} Bd6 {[%emt 0:00:14]} 7. Bd3 {[%emt 0:00:36]} O-O {[%emt 0:00:15]} 8. O-O {[%emt 0:00:36]} b6 {[%emt 0:00:14]} 9. Nbd2 {[%emt 0:00:56]} Bb7 {[%emt 0:00:22]} 10. Ne5 {[%emt 0:05:07]} c5 {[%emt 0:00:45]} 11. Qe2 {[%emt 0:04:28]} Ne4 {[%emt 0:07:11]} 12. Nxd7 {[%emt 0:20:12]} Qxd7 {[%emt 0:01:41]} 13. cxd5 {[%emt 0:01:27]} exd5 {[%emt 0:00:36]} 14. dxc5 {[%emt 0:00:44]} Nxc5 {[%emt 0:03:39]} 15. Bb5 {[%emt 0:07:50]} Qf5 {[%emt 0:03:51]} 16. b4 {[%emt 0:05:19]} Ne4 {[%emt 0:04:25]} 17. a3 {[%emt 0:03:02]} Nxd2 {[%emt 0:10:46]} 18. Qxd2 {[%emt 0:00:09]} Be5 {[%emt 0:01:00]} 19. Bd4 {[%emt 0:10:43]} Bxd4 {[%emt 0:03:55]} 20. Qxd4 {[%emt 0:00:37]} Rac8 {[%emt 0:01:42]} 21. a4 {[%emt 0:06:10]} Qe6 {[%emt 0:08:35]} 22. a5 {[%emt 0:03:34]} a6 {[%emt 0:02:42]} 23. Be2 {[%emt 0:00:31]} b5 {[%emt 0:00:57]} 24. Bg4 {[%emt 0:05:00]} f5 {[%emt 0:00:25]} 25. Be2 {[%emt 0:00:52]} Rc7 {[%emt 0:03:05]} 26. Rfd1 {[%emt 0:02:37]} Rd8 {[%emt 0:06:01]} 27. Rd2 {[%emt 0:03:15]} Rdc8 {[%emt 0:05:03]} 28. Qb2 {[%emt 0:03:34]} Rd8 {[%emt 0:08:58]} 29. Rad1 {[%emt 0:00:35]} Rcd7 {[%emt 0:01:14]} 30. h3 {[%emt 0:01:10]} Rd6 {[%emt 0:01:54]} 31. Bf3 {[%emt 0:01:04]} Kh8 {[%emt 0:01:37]} 32. Rd4 {[%emt 0:02:36]} R6d7 {[%emt 0:04:32]} 33. Qb3 {[%emt 0:01:04]} Qe5 {[%emt 0:03:53]} 34. Qa2 {[%emt 0:01:09]} Rd6 {[%emt 0:02:49]} 35. Qa1 {[%emt 0:00:22]} Qf6 {[%emt 0:01:12]} 36. Qa2 {[%emt 0:01:49]} Qe5 {[%emt 0:00:27]} 37. Qd2 {[%emt 0:00:15]} R6d7 {[%emt 0:04:33]} 38. Rc1 {[%emt 0:00:27]} h6 {[%emt 0:00:52]} 39. Rc5 {[%emt 0:00:18]} Qe6 {[%emt 0:00:37]} 40. g4 {[%emt 0:01:18]} g6 {[%emt 0:01:30]} 41. Rc1 {[%emt 0:08:28]} Kh7 {[%emt 0:03:46]} 42. Rd1 {[%emt 0:00:26]} Bc6 {[%emt 0:00:54]} 43. Qd3 {[%emt 0:02:21]} Qe5 {[%emt 0:03:02]} 44. Rf4 {[%emt 0:03:07]} Rf7 {[%emt 0:04:07]} 45. Kg2 {[%emt 0:06:47]} Qg7 {[%emt 0:04:13]} 46. gxf5 {[%emt 0:05:50]} Rxf5 {[%emt 0:04:21]} 47. Rxf5 {[%emt 0:01:04]} gxf5+ {[%emt 0:00:05]} 48. Kf1 {[%emt 0:01:20]} Qe5 {[%emt 0:02:00]} 49. Ke2 {[%emt 0:00:53]} Rd7 {[%emt 0:03:17]} 50. Qd4 {[%emt 0:01:14]} Qxd4 {[%emt 0:03:08]} 51. exd4 {[%emt 0:00:26]} Kg6 {[%emt 0:01:25]} 52. Ke3 {[%emt 0:00:22]} Kf6 {[%emt 0:01:11]} 53. Kf4 {[%emt 0:00:18]} Re7 {[%emt 0:00:50]} 54. h4 {[%emt 0:02:13]} Bb7 {[%emt 0:03:23]} 55. Rg1 {[%emt 0:02:40]} Rc7 {[%emt 0:02:08]} 56. h5 {[%emt 0:01:34]} Rc4 {[%emt 0:04:40]} 57. Rg6+ {[%emt 0:00:30]} Kf7 {[%emt 0:00:30]} 58. Rxh6 {[%emt 0:00:30]} Kg7 {[%emt 0:00:30]} 59. Rg6+ {[%emt 0:00:30]} Kh7 {[%emt 0:00:30]} 60. Kg5 {[%emt 0:00:30]} Rc1 {[%emt 0:00:30]} 61. Rd6 {[%emt 0:01:28]} Bc8 {[%emt 0:00:30]} 62. Bxd5 {[%emt 0:00:29]} Rg1+ {[%emt 0:01:01]} 63. Kf6 {[%emt 0:00:15]} f4 {[%emt 0:00:22]} 64. Rd8 {[%emt 0:00:31]} Bh3 {[%emt 0:00:19]} 65. Be4+ {[%emt 0:00:05]} 1-0

[Event "Slovakia Open Piestany-A 2022"]
[Site "Piestany"]
[Date "2022.07.13"]
[Round "4.24"]
[White "Matras, Ondrej"]
[Black "Compel, Daniel"]
[Result "1-0"]
[ECO "E32"]
[WhiteElo "2229"]
[BlackElo "2098"]
[Annotator "ChessBase"]
[PlyCount "69"]
[EventDate "2022.07.12"]
[EventType "swiss"]
[EventCountry "SVK"]
[SourceTitle "playchess.com"]
[Source "ChessBase"]
[SourceQuality "1"]
[TimeControl "40/5400+30:1800+30"]

1. d4 {[%emt 0:00:02]} Nf6 {[%emt 0:00:54]} 2. c4 {[%emt 0:00:01]} e6 {[%emt 0:00:05]} 3. Nc3 {[%emt 0:00:05]} Bb4 {[%emt 0:00:06]} 4. Qc2 {[%emt 0:00:02]} O-O {[%emt 0:00:06]} 5. a3 {[%emt 0:00:22]} Bxc3+ {[%emt 0:00:05]} 6. Qxc3 {[%emt 0:00:02]} b6 {[%emt 0:00:04]} 7. Bg5 {[%emt 0:01:14]} Bb7 {[%emt 0:00:05]} 8. e3 {[%emt 0:00:27]} d6 {[%emt 0:02:28]} 9. f3 {[%emt 0:01:04]} c5 {[%emt 0:00:40]} 10. dxc5 {[%emt 0:01:02]} dxc5 {[%emt 0:00:05]} 11. Rd1 {[%emt 0:00:32]} Qe7 {[%emt 0:00:17]} 12. Nh3 {[%emt 0:04:53]} Nbd7 {[%emt 0:01:00]} 13. Be2 {[%emt 0:01:22]} Rfd8 {[%emt 0:01:34]} 14. O-O {[%emt 0:00:16]} Nf8 {[%emt 0:05:16]} 15. Bd3 {[%emt 0:06:15]} e5 {[%emt 0:02:21]} 16. Bf5 {[%emt 0:03:20]} Rd6 {[%emt 0:03:38]} 17. Rxd6 {[%emt 0:06:04]} Qxd6 {[%emt 0:00:54]} 18. Nf2 {[%emt 0:00:03]} N8d7 {[%emt 0:17:22]} 19. Rd1 {[%emt 0:04:02]} Qc7 {[%emt 0:00:31]} 20. Qd3 {[%emt 0:02:07]} Nf8 {[%emt 0:10:35]} 21. Bxf6 {[%emt 0:03:58]} gxf6 {[%emt 0:00:20]} 22. Ng4 {[%emt 0:01:22]} Kg7 {[%emt 0:00:16]} 23. Qd6 {[%emt 0:03:23]} Qxd6 {[%emt 0:00:42]} 24. Rxd6 {[%emt 0:00:03]} Bc8 {[%emt 0:02:09]} 25. Bxc8 {[%emt 0:02:05]} Rxc8 {[%emt 0:00:02]} 26. Nxf6 {[%emt 0:00:13]} Ne6 {[%emt 0:00:06]} 27. Ng4 {[%emt 0:02:30]} e4 {[%emt 0:00:48]} 28. fxe4 {[%emt 0:00:03]} h5 {[%emt 0:01:28]} 29. Nf2 {[%emt 0:01:21]} Rd8 {[%emt 0:00:40]} 30. Rd5 {[%emt 0:00:43]} Kf6 {[%emt 0:01:59]} 31. Kf1 {[%emt 0:02:43]} b5 {[%emt 0:00:28]} 32. cxb5 {[%emt 0:06:44]} Rxd5 {[%emt 0:00:30]} 33. exd5 {[%emt 0:00:02]} Nc7 {[%emt 0:00:08]} 34. Ne4+ {[%emt 0:00:18]} Ke5 {[%emt 0:00:14]} 35. Nc3 {[%emt 0:09:22]} 1-0

[Event "Slovakia Open Piestany-A 2022"]
[Site "Piestany"]
[Date "2022.07.13"]
[Round "4.25"]
[White "Holly, Andrej"]
[Black "Walter, Ema"]
[Result "0-1"]
[ECO "C54"]
[WhiteElo "2213"]
[BlackElo "2000"]
[Annotator "ChessBase"]
[PlyCount "84"]
[EventDate "2022.07.12"]
[EventType "swiss"]
[EventCountry "SVK"]
[SourceTitle "playchess.com"]
[Source "ChessBase"]
[SourceQuality "1"]
[TimeControl "40/5400+30:1800+30"]

1. e4 {[%emt 0:00:43]} e5 {[%emt 0:00:14]} 2. Nf3 {[%emt 0:00:03]} Nc6 {[%emt 0:00:30]} 3. Bc4 {[%emt 0:00:04]} Bc5 {[%emt 0:00:12]} 4. c3 {[%emt 0:00:05]} Nf6 {[%emt 0:00:29]} 5. d3 {[%emt 0:00:04]} h6 {[%emt 0:02:02]} 6. Nbd2 {[%emt 0:01:10]} d6 {[%emt 0:00:56]} 7. Nf1 {[%emt 0:00:30]} O-O {[%emt 0:02:37]} 8. Ng3 {[%emt 0:02:37]} Be6 {[%emt 0:02:14]} 9. Bb5 {[%emt 0:03:25]} Ne7 {[%emt 0:04:34]} 10. O-O {[%emt 0:04:03]} c6 {[%emt 0:03:27]} 11. Ba4 {[%emt 0:00:06]} Qc7 {[%emt 0:03:32]} 12. d4 {[%emt 0:04:22]} Bb6 {[%emt 0:02:18]} 13. Nh4 {[%emt 0:02:17]} d5 {[%emt 0:12:36]} 14. exd5 {[%emt 0:04:06]} Bxd5 {[%emt 0:11:49]} 15. Bc2 {[%emt 0:09:47]} Rad8 {[%emt 0:04:59]} 16. Nh5 {[%emt 0:08:26]} Nxh5 {[%emt 0:13:36]} 17. Qxh5 {[%emt 0:00:03]} exd4 {[%emt 0:00:35]} 18. Bxh6 {[%emt 0:02:39]} gxh6 {[%emt 0:01:46]} 19. Qxh6 {[%emt 0:08:01]} f5 {[%emt 0:00:10]} 20. Rfe1 {[%emt 0:01:19]} Rf7 {[%emt 0:04:23]} 21. c4 {[%emt 0:03:55]} Rh7 {[%emt 0:05:06]} 22. Qg5+ {[%emt 0:05:07]} Rg7 {[%emt 0:02:10]} 23. Rxe7 {[%emt 0:01:47]} Qxe7 {[%emt 0:01:44]} 24. Qxe7 {[%emt 0:00:02]} Rxe7 {[%emt 0:00:09]} 25. cxd5 {[%emt 0:00:38]} Rde8 {[%emt 0:01:41]} 26. Kf1 {[%emt 0:02:57]} Ba5 {[%emt 0:02:23]} 27. Nf3 {[%emt 0:00:34]} Re2 {[%emt 0:03:30]} 28. Bxf5 {[%emt 0:01:38]} cxd5 {[%emt 0:00:20]} 29. g4 {[%emt 0:02:41]} Rxb2 {[%emt 0:01:45]} 30. Nxd4 {[%emt 0:01:25]} Bb6 {[%emt 0:00:36]} 31. Rd1 {[%emt 0:00:10]} Rxa2 {[%emt 0:04:25]} 32. h4 {[%emt 0:00:07]} a5 {[%emt 0:02:03]} 33. h5 {[%emt 0:06:05]} a4 {[%emt 0:00:55]} 34. Nc2 {[%emt 0:00:37]} Rf8 {[%emt 0:02:40]} 35. Ne3 {[%emt 0:02:49]} a3 {[%emt 0:02:35]} 36. Kg1 {[%emt 0:07:27]} Bxe3 {[%emt 0:00:42]} 37. fxe3 {[%emt 0:00:06]} Rxf5 {[%emt 0:00:43]} 38. gxf5 {[%emt 0:00:13]} Rb2 {[%emt 0:00:04]} 39. Rxd5 {[%emt 0:00:22]} a2 {[%emt 0:00:08]} 40. Ra5 {[%emt 0:00:04]} Rb1+ {[%emt 0:00:07]} 41. Kf2 {[%emt 0:30:04]} a1=Q {[%emt 0:30:08]} 42. Rxa1 {[%emt 0:00:04]} Rxa1 {[%emt 0:00:06]} 0-1